[Event "Live Chess"]
[Site "Chess.com"]
[Date "2023.05.20"]
[Round "-"]
[White "fretle"]
[Black "BostonStrangler"]
[Result "0-1"]
[WhiteElo "1862"]
[BlackElo "2073"]
[TimeControl "300"]
[EndTime "12:37:53 PDT"]
[Termination "BostonStrangler won by resignation"]

1. f4 {[%clk 0:04:58.9]} 1... g6 {[%clk 0:04:56.8]} 2. Nf3 {[%clk 0:04:58.1]}
2... Bg7 {[%clk 0:04:52.3]} 3. Nc3 {[%clk 0:04:57]} 3... c5 {[%clk 0:04:51]} 4.
e3 {[%clk 0:04:55.6]} 4... a6 {[%clk 0:04:46.6]} 5. b3 {[%clk 0:04:53.9]} 5...
Nf6 {[%clk 0:04:45.2]} 6. Bb2 {[%clk 0:04:53]} 6... O-O {[%clk 0:04:44.7]} 7. d3
{[%clk 0:04:48.3]} 7... b5 {[%clk 0:04:43.5]} 8. Be2 {[%clk 0:04:25.8]} 8... d6
{[%clk 0:04:39.7]} 9. O-O {[%clk 0:04:21.3]} 9... Bb7 {[%clk 0:04:37.9]} 10. h3
{[%clk 0:04:14]} 10... Nbd7 {[%clk 0:04:36.1]} 11. e4 {[%clk 0:04:10.1]} 11...
Nh5 {[%clk 0:04:22.9]} 12. Nh2 {[%clk 0:03:43.7]} 12... Bd4+ {[%clk 0:04:16.3]}
13. Rf2 {[%clk 0:03:36.5]} 13... Nxf4 {[%clk 0:04:10.3]} 14. Qd2 {[%clk
0:03:24.7]} 14... e5 {[%clk 0:03:55.1]} 15. Nd1 {[%clk 0:03:18.5]} 15... Nxe2+
{[%clk 0:03:38.3]} 16. Qxe2 {[%clk 0:03:16.7]} 16... Bxf2+ {[%clk 0:03:36.4]}
17. Nxf2 {[%clk 0:03:07.2]} 17... f5 {[%clk 0:03:32.1]} 18. Rf1 {[%clk
0:03:00.3]} 18... f4 {[%clk 0:03:24.5]} 19. Nd1 {[%clk 0:02:53.6]} 19... Nf6
{[%clk 0:03:20.7]} 20. Nf3 {[%clk 0:02:51.6]} 20... Nh5 {[%clk 0:03:18.7]} 21.
Qf2 {[%clk 0:02:39]} 21... Ng3 {[%clk 0:03:11.2]} 22. Bc1 {[%clk 0:02:37.8]}
22... Nxf1 {[%clk 0:03:08.6]} 23. Kxf1 {[%clk 0:02:37.1]} 23... Qa5 {[%clk
0:03:03.1]} 24. a3 {[%clk 0:02:31.9]} 24... Qc7 {[%clk 0:02:49.6]} 25. Nc3
{[%clk 0:02:27.5]} 25... Bc6 {[%clk 0:02:47]} 26. Nd5 {[%clk 0:02:11.6]} 26...
Bxd5 {[%clk 0:02:45.8]} 27. exd5 {[%clk 0:02:11.5]} 27... Qf7 {[%clk 0:02:44.2]}
28. c4 {[%clk 0:02:09.3]} 28... Qf5 {[%clk 0:02:37]} 29. Qe2 {[%clk 0:01:53.4]}
29... bxc4 {[%clk 0:02:31.8]} 30. dxc4 {[%clk 0:01:48]} 30... e4 {[%clk
0:02:28.7]} 31. Nd2 {[%clk 0:01:41.5]} 31... Rae8 {[%clk 0:02:20.8]} 32. Kg1
{[%clk 0:01:37.5]} 32... f3 {[%clk 0:02:15.4]} 33. Qe3 {[%clk 0:01:20.4]} 33...
Qe5 {[%clk 0:02:01.1]} 34. Nf1 {[%clk 0:00:51.3]} 34... f2+ {[%clk 0:01:48]} 35.
Kh1 {[%clk 0:00:49.8]} 35... Qh5 {[%clk 0:01:38.8]} 36. Bd2 {[%clk 0:00:48.1]}
36... Rf3 {[%clk 0:01:30.4]} 0-1

[Event "Live Chess"]
[Site "Chess.com"]
[Date "2023.05.20"]
[Round "-"]
[White "OSmith06"]
[Black "GMHarry-youtube"]
[Result "0-1"]
[WhiteElo "1666"]
[BlackElo "2105"]
[TimeControl "300"]
[EndTime "12:37:54 PDT"]
[Termination "GMHarry-youtube won by resignation"]

1. e4 {[%clk 0:04:54.3]} 1... c5 {[%clk 0:04:58.4]} 2. Nf3 {[%clk 0:04:51.8]}
2... d6 {[%clk 0:04:56.6]} 3. d4 {[%clk 0:04:50.3]} 3... cxd4 {[%clk 0:04:56.5]}
4. Nxd4 {[%clk 0:04:49.9]} 4... Nf6 {[%clk 0:04:55.3]} 5. Nc3 {[%clk 0:04:47.9]}
5... g6 {[%clk 0:04:53.6]} 6. Be3 {[%clk 0:04:44.5]} 6... Bg7 {[%clk 0:04:53.1]}
7. f3 {[%clk 0:04:42]} 7... O-O {[%clk 0:04:52.6]} 8. Qd2 {[%clk 0:04:41]} 8...
Nc6 {[%clk 0:04:51.5]} 9. O-O-O {[%clk 0:04:38.8]} 9... d5 {[%clk 0:04:50.9]}
10. exd5 {[%clk 0:04:36.7]} 10... Nxd5 {[%clk 0:04:50.8]} 11. Nxd5 {[%clk
0:04:34.2]} 11... Qxd5 {[%clk 0:04:41.4]} 12. Kb1 {[%clk 0:04:28.4]} 12... Nxd4
{[%clk 0:04:37.8]} 13. Bxd4 {[%clk 0:04:26.8]} 13... Be6 {[%clk 0:04:37.4]} 14.
c4 {[%clk 0:04:09.6]} 14... Bf5+ {[%clk 0:04:29.5]} 15. Ka1 {[%clk 0:04:03.8]}
15... Qd6 {[%clk 0:04:21.6]} 16. Bxg7 {[%clk 0:03:57.2]} 16... Qxd2 {[%clk
0:04:13.4]} 17. Rxd2 {[%clk 0:03:57.1]} 17... Kxg7 {[%clk 0:04:11.8]} 18. g4
{[%clk 0:03:54.2]} 18... Be6 {[%clk 0:04:07]} 19. h4 {[%clk 0:03:45.4]} 19...
Rad8 {[%clk 0:03:59.9]} 20. Rhh2 {[%clk 0:03:35]} 20... Rd6 {[%clk 0:03:53.5]}
21. Rxd6 {[%clk 0:03:30.1]} 21... exd6 {[%clk 0:03:52.3]} 22. Rd2 {[%clk
0:03:25.8]} 22... Rc8 {[%clk 0:03:50.2]} 23. b3 {[%clk 0:03:08]} 23... Rd8
{[%clk 0:03:46.5]} 24. c5 {[%clk 0:03:03.3]} 24... d5 {[%clk 0:03:43.7]} 25. Be2
{[%clk 0:02:48.5]} 25... a5 {[%clk 0:03:38.5]} 26. f4 {[%clk 0:02:34.6]} 26...
Rc8 {[%clk 0:03:35.3]} 27. Rc2 {[%clk 0:02:26.5]} 27... f5 {[%clk 0:03:28.9]}
28. g5 {[%clk 0:02:18.4]} 28... Kf7 {[%clk 0:03:18.8]} 29. h5 {[%clk 0:02:09.3]}
29... Ke7 {[%clk 0:03:13.4]} 30. h6 {[%clk 0:01:54.1]} 30... Kd7 {[%clk
0:03:06.6]} 31. Bb5+ {[%clk 0:01:53]} 31... Kc7 {[%clk 0:03:05.7]} 32. c6 {[%clk
0:01:48.1]} 32... Kb8 {[%clk 0:02:44.7]} 33. Kb2 {[%clk 0:01:37.5]} 33... b6
{[%clk 0:02:25.1]} 34. Re2 {[%clk 0:01:19.3]} 34... Bf7 {[%clk 0:02:10.6]} 35.
Re7 {[%clk 0:01:16.2]} 35... Rc7 {[%clk 0:02:09]} 36. Re5 {[%clk 0:00:57.4]}
36... Kc8 {[%clk 0:01:55.3]} 37. Ba6+ {[%clk 0:00:52.6]} 37... Kd8 {[%clk
0:01:52.3]} 38. Kc3 {[%clk 0:00:48.2]} 38... Rxc6+ {[%clk 0:01:50.4]} 39. Kd4
{[%clk 0:00:45]} 39... Rd6 {[%clk 0:01:41.6]} 40. Bb5 {[%clk 0:00:39.7]} 40...
Be6 {[%clk 0:01:31.4]} 41. Re1 {[%clk 0:00:31.4]} 41... Bd7 {[%clk 0:01:25.6]}
42. Bxd7 {[%clk 0:00:27.9]} 42... Kxd7 {[%clk 0:01:23.7]} 43. Re5 {[%clk
0:00:24.8]} 43... Re6 {[%clk 0:01:13.2]} 44. Rxd5+ {[%clk 0:00:22.9]} 44... Kc7
{[%clk 0:01:12.3]} 45. Re5 {[%clk 0:00:20.6]} 45... Rd6+ {[%clk 0:01:08.3]} 46.
Rd5 {[%clk 0:00:19.4]} 46... Re6 {[%clk 0:01:03.5]} 47. Re5 {[%clk 0:00:18.8]}
47... Kd6 {[%clk 0:00:58.3]} 48. Rxe6+ {[%clk 0:00:17.3]} 48... Kxe6 {[%clk
0:00:58.2]} 49. a4 {[%clk 0:00:16.3]} 49... Kd6 {[%clk 0:00:57.1]} 50. Kc4
{[%clk 0:00:14.7]} 50... Kc6 {[%clk 0:00:56.6]} 51. Kd4 {[%clk 0:00:14]} 51...
b5 {[%clk 0:00:56.1]} 52. axb5+ {[%clk 0:00:13.1]} 52... Kxb5 {[%clk 0:00:56]}
53. Kc3 {[%clk 0:00:10.8]} 53... Kc5 {[%clk 0:00:55.3]} 54. Kd3 {[%clk
0:00:10.2]} 54... Kb4 {[%clk 0:00:54.6]} 55. Kc2 {[%clk 0:00:09.8]} 55... Ka3
{[%clk 0:00:50.2]} 56. Kc3 {[%clk 0:00:09.3]} 56... Ka2 {[%clk 0:00:49.5]} 57.
Kc4 {[%clk 0:00:08.4]} 57... Kb2 {[%clk 0:00:48.6]} 58. Kb5 {[%clk 0:00:07.7]}
58... Kxb3 {[%clk 0:00:47.7]} 59. Kxa5 {[%clk 0:00:07.2]} 59... Kc4 {[%clk
0:00:47.6]} 60. Kb6 {[%clk 0:00:06.6]} 60... Kd4 {[%clk 0:00:47.3]} 61. Kc7
{[%clk 0:00:06.2]} 61... Ke4 {[%clk 0:00:47]} 62. Kd7 {[%clk 0:00:05.9]} 62...
Kxf4 {[%clk 0:00:46.7]} 63. Ke7 {[%clk 0:00:05.8]} 63... Kxg5 {[%clk 0:00:46.4]}
64. Kf7 {[%clk 0:00:05.7]} 64... Kxh6 {[%clk 0:00:46.1]} 65. Kf6 {[%clk
0:00:04.8]} 65... Kh5 {[%clk 0:00:45.4]} 66. Kg7 {[%clk 0:00:04.2]} 66... Kg4
{[%clk 0:00:45.3]} 67. Kxh7 {[%clk 0:00:04.1]} 67... f4 {[%clk 0:00:44.9]} 68.
Kxg6 {[%clk 0:00:04]} 68... f3 {[%clk 0:00:44.8]} 69. Kg7 {[%clk 0:00:03.2]}
69... f2 {[%clk 0:00:44.7]} 0-1

[Event "Live Chess"]
[Site "Chess.com"]
[Date "2023.05.20"]
[Round "-"]
[White "chessfiction"]
[Black "WilliamofOrange16th"]
[Result "1-0"]
[WhiteElo "2410"]
[BlackElo "1854"]
[TimeControl "300"]
[EndTime "12:37:54 PDT"]
[Termination "chessfiction won by resignation"]

1. e4 {[%clk 0:04:57.8]} 1... d6 {[%clk 0:04:55.6]} 2. d4 {[%clk 0:04:56.4]}
2... Nf6 {[%clk 0:04:49.7]} 3. Nc3 {[%clk 0:04:54.7]} 3... Nbd7 {[%clk
0:04:49.3]} 4. f4 {[%clk 0:04:53.9]} 4... e5 {[%clk 0:04:49]} 5. Nf3 {[%clk
0:04:53.4]} 5... exd4 {[%clk 0:04:48.1]} 6. Nxd4 {[%clk 0:04:52.3]} 6... g6
{[%clk 0:04:46.5]} 7. Bc4 {[%clk 0:04:51.8]} 7... Bg7 {[%clk 0:04:43.8]} 8. O-O
{[%clk 0:04:51.4]} 8... O-O {[%clk 0:04:41.1]} 9. Be3 {[%clk 0:04:49.6]} 9...
Re8 {[%clk 0:04:02.6]} 10. Qf3 {[%clk 0:04:47.1]} 10... c6 {[%clk 0:03:52.3]}
11. Rae1 {[%clk 0:04:44.7]} 11... Nc5 {[%clk 0:03:48.5]} 12. e5 {[%clk 0:04:39]}
12... dxe5 {[%clk 0:03:45.9]} 13. fxe5 {[%clk 0:04:38.9]} 13... Rxe5 {[%clk
0:03:39.7]} 14. Nb3 {[%clk 0:04:21.3]} 14... Nxb3 {[%clk 0:03:29.9]} 15. Bxb3
{[%clk 0:04:21.2]} 15... Rf5 {[%clk 0:03:22.6]} 16. Bf4 {[%clk 0:04:16.9]} 16...
Nd5 {[%clk 0:03:04.8]} 17. Nxd5 {[%clk 0:04:08.2]} 17... cxd5 {[%clk 0:03:04.7]}
18. Qg3 {[%clk 0:04:04.6]} 18... Be6 {[%clk 0:02:51.4]} 19. Re2 {[%clk
0:03:59.2]} 19... Qb6+ {[%clk 0:02:41.6]} 20. Kh1 {[%clk 0:03:56.8]} 20... a5
{[%clk 0:02:34.2]} 21. a4 {[%clk 0:03:55]} 21... Bxb2 {[%clk 0:02:30.9]} 22.
Rfe1 {[%clk 0:03:50.9]} 22... Bg7 {[%clk 0:02:21]} 23. h3 {[%clk 0:03:49.9]}
23... Re8 {[%clk 0:02:13.5]} 24. Be3 {[%clk 0:03:40.6]} 24... d4 {[%clk
0:02:07.5]} 25. Bg1 {[%clk 0:03:32.9]} 25... Qc6 {[%clk 0:01:24.4]} 26. Qg4
{[%clk 0:03:15.4]} 26... Bd7 {[%clk 0:01:12.8]} 27. Rxe8+ {[%clk 0:03:12.7]}
27... Bxe8 {[%clk 0:01:12.7]} 28. Bxd4 {[%clk 0:03:10.1]} 28... Bd7 {[%clk
0:00:59.7]} 29. Bxg7 {[%clk 0:03:05.2]} 29... Rf1+ {[%clk 0:00:51.7]} 30. Rxf1
{[%clk 0:03:01.7]} 30... Bxg4 {[%clk 0:00:50.7]} 31. Rxf7 {[%clk 0:02:56.7]}
31... Be6 {[%clk 0:00:45.2]} 32. Bxe6 {[%clk 0:02:47.1]} 32... Qxe6 {[%clk
0:00:43]} 33. Rxb7 {[%clk 0:02:47]} 33... Qc6 {[%clk 0:00:33.8]} 34. Ra7 {[%clk
0:02:41.2]} 34... Qxa4 {[%clk 0:00:27.6]} 35. Bc3 {[%clk 0:02:21.2]} 35... Qc4
{[%clk 0:00:26.7]} 36. Ra8+ {[%clk 0:02:18]} 36... Kf7 {[%clk 0:00:25.4]} 37.
Ra7+ {[%clk 0:02:07.6]} 37... Ke6 {[%clk 0:00:24.2]} 38. Bxa5 {[%clk 0:01:58.6]}
38... Qxc2 {[%clk 0:00:24.1]} 39. Bc7 {[%clk 0:01:54.2]} 39... Qc1+ {[%clk
0:00:23]} 40. Kh2 {[%clk 0:01:52.4]} 40... Qd1 {[%clk 0:00:22.1]} 41. Bg3 {[%clk
0:01:50.5]} 41... h5 {[%clk 0:00:21.2]} 42. Ra6+ {[%clk 0:01:49.1]} 42... Kf5
{[%clk 0:00:20.7]} 43. Ra5+ {[%clk 0:01:47.9]} 43... Kf6 {[%clk 0:00:20.2]} 44.
h4 {[%clk 0:01:44.5]} 44... Qd3 {[%clk 0:00:18.2]} 45. Rg5 {[%clk 0:01:42.3]}
45... Qe2 {[%clk 0:00:16.9]} 46. Rd5 {[%clk 0:01:37.7]} 46... Qe4 {[%clk
0:00:15.6]} 47. Rd6+ {[%clk 0:01:36.6]} 47... Kf7 {[%clk 0:00:14.5]} 48. Rd7+
{[%clk 0:01:35.7]} 48... Kf6 {[%clk 0:00:13.9]} 49. Rd2 {[%clk 0:01:35.1]} 49...
Qe3 {[%clk 0:00:12.5]} 50. Rf2+ {[%clk 0:01:32.6]} 50... Kg7 {[%clk 0:00:11.4]}
51. Ra2 {[%clk 0:01:31.1]} 51... Qe6 {[%clk 0:00:11.2]} 52. Ra7+ {[%clk
0:01:29.6]} 52... Kg8 {[%clk 0:00:10.3]} 53. Bf4 {[%clk 0:01:28.1]} 53... Qf5
{[%clk 0:00:09.3]} 54. Bg5 {[%clk 0:01:26.8]} 54... Qg4 {[%clk 0:00:08.7]} 55.
Ra8+ {[%clk 0:01:22.6]} 55... Kf7 {[%clk 0:00:08.6]} 56. Ra7+ {[%clk 0:01:21.9]}
56... Ke6 {[%clk 0:00:08.2]} 57. Ra6+ {[%clk 0:01:21.2]} 57... Kd7 {[%clk
0:00:07.9]} 58. Rf6 {[%clk 0:01:20.3]} 58... Qe4 {[%clk 0:00:06.4]} 59. Rf4
{[%clk 0:01:19.1]} 59... Kc6 {[%clk 0:00:06]} 60. Rxe4 {[%clk 0:01:18.2]} 1-0

[Event "Live Chess"]
[Site "Chess.com"]
[Date "2023.05.20"]
[Round "-"]
[White "CheckThis4"]
[Black "Stanbad1"]
[Result "1-0"]
[WhiteElo "2565"]
[BlackElo "2426"]
[TimeControl "300"]
[EndTime "12:37:55 PDT"]
[Termination "CheckThis4 won by resignation"]

1. d4 {[%clk 0:04:53.3]} 1... Nf6 {[%clk 0:04:57.7]} 2. Bg5 {[%clk 0:04:49.4]}
2... Ne4 {[%clk 0:04:56.1]} 3. Bf4 {[%clk 0:04:48.2]} 3... c5 {[%clk 0:04:55.5]}
4. f3 {[%clk 0:04:47.3]} 4... Qa5+ {[%clk 0:04:53.5]} 5. c3 {[%clk 0:04:46.7]}
5... Nf6 {[%clk 0:04:52.7]} 6. d5 {[%clk 0:04:45.7]} 6... e6 {[%clk 0:04:49.9]}
7. e4 {[%clk 0:04:44.3]} 7... exd5 {[%clk 0:04:46.4]} 8. exd5 {[%clk 0:04:43]}
8... d6 {[%clk 0:04:45.4]} 9. Na3 {[%clk 0:04:41.3]} 9... Nbd7 {[%clk
0:04:39.1]} 10. Nc4 {[%clk 0:04:32.4]} 10... Qc7 {[%clk 0:04:36.8]} 11. a4
{[%clk 0:04:31.5]} 11... b6 {[%clk 0:04:34.3]} 12. Nh3 {[%clk 0:04:14.2]} 12...
Bb7 {[%clk 0:04:29.2]} 13. Qe2+ {[%clk 0:04:13.1]} 13... Kd8 {[%clk 0:04:24.2]}
14. Ng5 {[%clk 0:04:05.4]} 14... Bxd5 {[%clk 0:04:18]} 15. O-O-O {[%clk
0:04:02.9]} 15... h6 {[%clk 0:04:13.9]} 16. Rxd5 {[%clk 0:03:26.7]} 16... Nxd5
{[%clk 0:03:08.8]} 17. Nxf7+ {[%clk 0:03:11.9]} 17... Kc8 {[%clk 0:03:06.8]} 18.
Bxd6 {[%clk 0:03:07.7]} 18... Bxd6 {[%clk 0:03:01.7]} 19. Ncxd6+ {[%clk
0:03:04]} 19... Kb8 {[%clk 0:02:59.2]} 20. Qe6 {[%clk 0:02:27.2]} 20... Nf4
{[%clk 0:02:36.5]} 21. Qe4 {[%clk 0:02:13.1]} 21... Rf8 {[%clk 0:02:34.3]} 22.
Qxf4 {[%clk 0:01:57.5]} 22... Rxf7 {[%clk 0:02:32.1]} 23. Qxf7 {[%clk
0:01:55.8]} 23... Qxd6 {[%clk 0:02:32]} 24. Bb5 {[%clk 0:01:53.1]} 24... Ne5
{[%clk 0:02:24.6]} 25. Qxg7 {[%clk 0:01:44.9]} 25... a6 {[%clk 0:02:21.6]} 26.
Rd1 {[%clk 0:01:42.5]} 26... Qc7 {[%clk 0:02:20]} 27. Qxc7+ {[%clk 0:01:18.2]}
27... Kxc7 {[%clk 0:02:19.9]} 28. Be2 {[%clk 0:01:17.5]} 28... Rg8 {[%clk
0:02:14.7]} 29. g3 {[%clk 0:01:16.4]} 29... Rf8 {[%clk 0:02:12.6]} 30. f4 {[%clk
0:01:15.8]} 30... Nc6 {[%clk 0:02:11.4]} 31. Bf3 {[%clk 0:01:14.3]} 31... Na5
{[%clk 0:02:08.8]} 32. Kc2 {[%clk 0:01:13.2]} 32... Nc4 {[%clk 0:02:07.5]} 33.
Re1 {[%clk 0:01:12.3]} 33... Rd8 {[%clk 0:02:05.8]} 34. b3 {[%clk 0:01:10.2]}
34... Rd2+ {[%clk 0:02:02.9]} 35. Kc1 {[%clk 0:01:09.3]} 35... Rd3 {[%clk
0:02:02.2]} 36. Kc2 {[%clk 0:01:02.4]} 36... Rd2+ {[%clk 0:02:00.2]} 37. Kc1
{[%clk 0:01:00.5]} 37... Rd3 {[%clk 0:01:59.3]} 38. bxc4 {[%clk 0:00:58.7]}
38... Rxc3+ {[%clk 0:01:58.1]} 39. Kb2 {[%clk 0:00:57.3]} 39... Rxf3 {[%clk
0:01:58]} 40. Re7+ {[%clk 0:00:53.7]} 40... Kc6 {[%clk 0:01:56.2]} 41. Re6+
{[%clk 0:00:52.6]} 41... Kc7 {[%clk 0:01:55.3]} 42. Rxh6 {[%clk 0:00:52.2]}
42... Rf2+ {[%clk 0:01:53.8]} 43. Kc3 {[%clk 0:00:50.6]} 43... Rf3+ {[%clk
0:01:53]} 44. Kc2 {[%clk 0:00:49.4]} 44... Rf2+ {[%clk 0:01:52.2]} 45. Kd3
{[%clk 0:00:48.2]} 45... Rf3+ {[%clk 0:01:48.9]} 46. Ke4 {[%clk 0:00:47.2]}
46... Ra3 {[%clk 0:01:48.8]} 47. f5 {[%clk 0:00:46.4]} 47... Rxa4 {[%clk
0:01:32.9]} 48. Kd5 {[%clk 0:00:45.3]} 48... Ra1 {[%clk 0:01:31.7]} 49. Rh7+
{[%clk 0:00:44.9]} 49... Kd8 {[%clk 0:01:27.9]} 50. g4 {[%clk 0:00:42.9]} 50...
Rf1 {[%clk 0:01:26.4]} 51. h4 {[%clk 0:00:38.3]} 51... a5 {[%clk 0:01:25.4]} 52.
h5 {[%clk 0:00:37.7]} 52... a4 {[%clk 0:01:24.5]} 53. Ra7 {[%clk 0:00:36.9]}
53... Rf4 {[%clk 0:01:22.3]} 54. h6 {[%clk 0:00:35.3]} 54... Rxg4 {[%clk
0:01:21.5]} 55. h7 {[%clk 0:00:34.8]} 55... Rh4 {[%clk 0:01:20.9]} 56. h8=Q+
{[%clk 0:00:33]} 1-0

[Event "Live Chess"]
[Site "Chess.com"]
[Date "2023.05.20"]
[Round "-"]
[White "rideuv21"]
[Black "Hacker_2009"]
[Result "0-1"]
[WhiteElo "1827"]
[BlackElo "1906"]
[TimeControl "300"]
[EndTime "12:38:05 PDT"]
[Termination "Hacker_2009 won by resignation"]

1. e4 {[%clk 0:04:59.4]} 1... c5 {[%clk 0:04:57.3]} 2. c3 {[%clk 0:04:58.3]}
2... d5 {[%clk 0:04:54.9]} 3. exd5 {[%clk 0:04:56.8]} 3... Qxd5 {[%clk
0:04:54.5]} 4. d4 {[%clk 0:04:55.6]} 4... e6 {[%clk 0:04:53.8]} 5. Nf3 {[%clk
0:04:53.8]} 5... Nc6 {[%clk 0:04:52.4]} 6. Bd3 {[%clk 0:04:50.7]} 6... Nf6
{[%clk 0:04:48.5]} 7. O-O {[%clk 0:04:49]} 7... Be7 {[%clk 0:04:47.4]} 8. Qe2
{[%clk 0:04:39.9]} 8... cxd4 {[%clk 0:04:45.5]} 9. cxd4 {[%clk 0:04:38.4]} 9...
Nxd4 {[%clk 0:04:44.4]} 10. Nxd4 {[%clk 0:04:38.3]} 10... Qxd4 {[%clk
0:04:43.5]} 11. Nc3 {[%clk 0:04:38]} 11... O-O {[%clk 0:04:41.4]} 12. Be3 {[%clk
0:04:34.9]} 12... Qb4 {[%clk 0:04:35.5]} 13. Rfd1 {[%clk 0:04:33]} 13... b6
{[%clk 0:04:20.6]} 14. a3 {[%clk 0:04:30]} 14... Qa5 {[%clk 0:04:19.8]} 15. Qf3
{[%clk 0:04:27.6]} 15... Rb8 {[%clk 0:04:16.1]} 16. Qg3 {[%clk 0:04:26]} 16...
Bb7 {[%clk 0:04:11.9]} 17. b4 {[%clk 0:04:21.6]} 17... Qh5 {[%clk 0:04:07.3]}
18. Bf4 {[%clk 0:04:07.3]} 18... Rbc8 {[%clk 0:04:02.4]} 19. Be2 {[%clk
0:04:05.3]} 19... Qg6 {[%clk 0:03:59.3]} 20. Nb5 {[%clk 0:04:01.2]} 20... Qxg3
{[%clk 0:03:53.5]} 21. Bxg3 {[%clk 0:04:01.1]} 21... a6 {[%clk 0:03:47]} 22. Nd6
{[%clk 0:03:59.3]} 22... Rb8 {[%clk 0:03:41.8]} 23. Nxb7 {[%clk 0:03:47]} 23...
Rxb7 {[%clk 0:03:40.9]} 24. Bxa6 {[%clk 0:03:45.4]} 24... Ra7 {[%clk 0:03:39.3]}
25. Bb5 {[%clk 0:03:43.9]} 25... Nd5 {[%clk 0:03:30]} 26. Bc6 {[%clk 0:03:38.6]}
26... Nc3 {[%clk 0:03:20.4]} 27. Rd7 {[%clk 0:03:16]} 27... Rxd7 {[%clk
0:03:14.2]} 28. Bxd7 {[%clk 0:03:15.9]} 28... Bf6 {[%clk 0:03:13.6]} 29. Re1
{[%clk 0:03:09.5]} 29... Ra8 {[%clk 0:03:11.9]} 30. Bc7 {[%clk 0:02:54.8]} 30...
Ra7 {[%clk 0:03:06.9]} 31. Bxb6 {[%clk 0:02:45.4]} 31... Rxd7 {[%clk 0:03:05.6]}
0-1

[Event "Live Chess"]
[Site "Chess.com"]
[Date "2023.05.20"]
[Round "-"]
[White "MarkLim1"]
[Black "1600x"]
[Result "0-1"]
[WhiteElo "1672"]
[BlackElo "1743"]
[TimeControl "300"]
[EndTime "12:38:06 PDT"]
[Termination "1600x won by resignation"]

1. d4 {[%clk 0:04:59.4]} 1... d5 {[%clk 0:04:58.3]} 2. Nf3 {[%clk 0:04:58.6]}
2... Nc6 {[%clk 0:04:51.5]} 3. e3 {[%clk 0:04:57.4]} 3... Qd6 {[%clk 0:04:50]}
4. Nbd2 {[%clk 0:04:53.3]} 4... Bf5 {[%clk 0:04:38.2]} 5. a3 {[%clk 0:04:49.8]}
5... O-O-O {[%clk 0:04:25.5]} 6. c4 {[%clk 0:04:48.6]} 6... e5 {[%clk
0:04:23.5]} 7. dxe5 {[%clk 0:04:45.3]} 7... Qd7 {[%clk 0:04:22.1]} 8. cxd5
{[%clk 0:04:39.3]} 8... Qxd5 {[%clk 0:04:20.6]} 9. Bc4 {[%clk 0:04:38.2]} 9...
Qd7 {[%clk 0:04:12.3]} 10. O-O {[%clk 0:04:27.7]} 10... a6 {[%clk 0:04:10.4]}
11. b4 {[%clk 0:04:25.7]} 11... f6 {[%clk 0:04:04.1]} 12. exf6 {[%clk
0:04:22.6]} 12... Nxf6 {[%clk 0:04:02.4]} 13. Bb2 {[%clk 0:04:22]} 13... h5
{[%clk 0:04:00.9]} 14. Nb3 {[%clk 0:04:19.4]} 14... b5 {[%clk 0:03:59.3]} 15.
Be2 {[%clk 0:04:10.6]} 15... Be4 {[%clk 0:03:57.6]} 16. Nc5 {[%clk 0:04:06.4]}
16... Qxd1 {[%clk 0:03:52.9]} 17. Rfxd1 {[%clk 0:04:05.4]} 17... Bxc5 {[%clk
0:03:50.7]} 18. bxc5 {[%clk 0:04:04]} 18... Bc2 {[%clk 0:03:49]} 19. Rdc1 {[%clk
0:03:51.4]} 19... Bd3 {[%clk 0:03:46.2]} 20. Bxd3 {[%clk 0:03:45.7]} 20... Rxd3
{[%clk 0:03:46.1]} 21. Rd1 {[%clk 0:03:31.5]} 21... Rhd8 {[%clk 0:03:44]} 22.
Nd4 {[%clk 0:03:24.4]} 22... Rxd1+ {[%clk 0:03:34.6]} 23. Rxd1 {[%clk
0:03:21.8]} 23... Kb7 {[%clk 0:03:32.9]} 24. Kf1 {[%clk 0:03:12.3]} 24... Rd5
{[%clk 0:03:29.9]} 25. Ke2 {[%clk 0:03:11.1]} 25... Na5 {[%clk 0:03:26]} 26. Nf3
{[%clk 0:02:58.3]} 26... Rxd1 {[%clk 0:03:19.7]} 27. Kxd1 {[%clk 0:02:54.3]}
27... Nc4 {[%clk 0:03:18]} 28. Kc2 {[%clk 0:02:46.7]} 28... Nxb2 {[%clk
0:03:15]} 29. Kxb2 {[%clk 0:02:45.8]} 29... Ne4 {[%clk 0:03:13.2]} 30. Kb3
{[%clk 0:02:37.4]} 30... Nxc5+ {[%clk 0:03:11.7]} 31. Kc3 {[%clk 0:02:35.7]}
31... Ne4+ {[%clk 0:03:08.7]} 32. Kd4 {[%clk 0:02:34.9]} 32... Nxf2 {[%clk
0:03:07.1]} 33. Nh4 {[%clk 0:02:30.4]} 33... Kb6 {[%clk 0:03:05]} 34. Nf5 {[%clk
0:02:29.5]} 34... c5+ {[%clk 0:03:03.5]} 35. Kc3 {[%clk 0:02:28.2]} 35... g5
{[%clk 0:03:01.5]} 36. Ng7 {[%clk 0:02:21.2]} 36... Nd1+ {[%clk 0:02:57.5]} 37.
Kd2 {[%clk 0:02:19.7]} 37... Nb2 {[%clk 0:02:56.2]} 38. Nxh5 {[%clk 0:02:17.4]}
38... Nc4+ {[%clk 0:02:54.8]} 39. Kc3 {[%clk 0:02:13.5]} 39... Nxa3 {[%clk
0:02:53.7]} 40. e4 {[%clk 0:02:10.9]} 40... b4+ {[%clk 0:02:49.7]} 41. Kb2
{[%clk 0:02:09.2]} 41... Nc4+ {[%clk 0:02:48]} 42. Kc2 {[%clk 0:02:05.9]} 42...
a5 {[%clk 0:02:46.4]} 43. e5 {[%clk 0:02:04.9]} 43... Nxe5 {[%clk 0:02:44.9]}
44. Ng3 {[%clk 0:02:04.1]} 44... g4 {[%clk 0:02:43.2]} 45. Ne4 {[%clk 0:02:03]}
45... a4 {[%clk 0:02:40.6]} 46. h3 {[%clk 0:02:02.1]} 46... c4 {[%clk
0:02:39.3]} 47. h4 {[%clk 0:01:57.5]} 47... a3 {[%clk 0:02:32.9]} 48. Kb1 {[%clk
0:01:56.5]} 48... Kc6 {[%clk 0:02:30.9]} 49. h5 {[%clk 0:01:54]} 49... Nf7
{[%clk 0:02:28.7]} 50. Nf6 {[%clk 0:01:42]} 50... b3 {[%clk 0:02:25.1]} 51. Nxg4
{[%clk 0:01:40]} 51... a2+ {[%clk 0:02:23.5]} 52. Ka1 {[%clk 0:01:37.2]} 52...
c3 {[%clk 0:02:22.3]} 53. Ne3 {[%clk 0:01:36.1]} 53... c2 {[%clk 0:02:21.1]} 54.
Kb2 {[%clk 0:01:32.4]} 54... a1=Q+ {[%clk 0:02:17.9]} 0-1

[Event "Live Chess"]
[Site "Chess.com"]
[Date "2023.05.20"]
[Round "-"]
[White "Ninifu"]
[Black "sup3rm0nk3y"]
[Result "1-0"]
[WhiteElo "2015"]
[BlackElo "1320"]
[TimeControl "300"]
[EndTime "12:38:12 PDT"]
[Termination "Ninifu won by resignation"]

1. d4 {[%clk 0:04:56.8]} 1... d5 {[%clk 0:04:52.5]} 2. e4 {[%clk 0:04:55.3]}
2... dxe4 {[%clk 0:04:50]} 3. Nc3 {[%clk 0:04:54.7]} 3... Nf6 {[%clk 0:04:45.1]}
4. f3 {[%clk 0:04:53.8]} 4... exf3 {[%clk 0:04:43.6]} 5. Nxf3 {[%clk 0:04:52.9]}
5... Bg4 {[%clk 0:04:40.1]} 6. h3 {[%clk 0:04:51.7]} 6... Bh5 {[%clk 0:04:35.6]}
7. g4 {[%clk 0:04:50.2]} 7... Bg6 {[%clk 0:04:34.3]} 8. Ne5 {[%clk 0:04:45.9]}
8... Nbd7 {[%clk 0:04:28]} 9. Bf4 {[%clk 0:04:44.4]} 9... Nxe5 {[%clk
0:04:25.6]} 10. dxe5 {[%clk 0:04:43.8]} 10... Qxd1+ {[%clk 0:04:24.1]} 11. Rxd1
{[%clk 0:04:43.1]} 11... Nd7 {[%clk 0:04:20.2]} 12. Nb5 {[%clk 0:04:28.8]} 12...
O-O-O {[%clk 0:04:13.8]} 13. e6 {[%clk 0:04:22.3]} 13... fxe6 {[%clk 0:03:52.6]}
14. Bxc7 {[%clk 0:04:11.7]} 14... Re8 {[%clk 0:03:48.4]} 15. Bg3 {[%clk
0:03:44.6]} 15... a6 {[%clk 0:03:22.3]} 16. Na7+ {[%clk 0:03:42.5]} 16... Kd8
{[%clk 0:03:21.4]} 17. Bc4 {[%clk 0:03:26.9]} 17... Bf7 {[%clk 0:02:59.1]} 18.
O-O {[%clk 0:03:25.4]} 18... Bg8 {[%clk 0:02:53.1]} 19. Be5 {[%clk 0:03:03.5]}
19... h5 {[%clk 0:01:38.8]} 20. Rd2 {[%clk 0:03:01.3]} 1-0